bitfinex/quotes_BTCUSD_20250716
["timestamp","ask_amount","ask_price","bid_price","bid_amount"]
[1752677020004,0.08171137,118590.0,118580.0,1.48817117]
[1752677020238,0.08171137,118590.0,118580.0,1.33657117]
[1752677020457,0.0658391,118590.0,118580.0,1.33657117]
[1752677020677,0.0658391,118590.0,118580.0,1.48817117]
[1752677020894,0.0742713,118590.0,118580.0,1.48817117]
[1752677021111,0.04897514,118590.0,118580.0,1.48817117]
[1752677021332,0.01794,118590.0,118580.0,1.49032117]
[1752677021796,0.03336,118600.0,118590.0,2.7030495]
[1752677022023,0.0302,118600.0,118590.0,2.22694225]
[1752677022242,0.0302,118600.0,118590.0,2.73697472]
[1752677022455,0.0302,118600.0,118590.0,2.75217472]
[1752677022671,0.0302,118600.0,118590.0,2.76787472]
[1752677023123,0.0312,118600.0,118590.0,6.83554072]
[1752677023341,0.0312,118600.0,118590.0,6.85739682]
[1752677023524,0.0312,118600.0,118590.0,5.87393117]
[1752677023958,0.02276777,118600.0,118590.0,4.88102223]
[1752677024170,0.02276777,118600.0,118590.0,5.83511617]
[1752677024403,0.01433554,118600.0,118590.0,5.48169317]
[1752677024619,0.01433554,118600.0,118590.0,4.96244707]
[1752677024845,0.00590331,118600.0,118590.0,3.99301225]
[1752677025054,0.0032,118610.0,118600.0,0.5339283]
[1752677025317,0.0032,118610.0,118600.0,2.99871952]
[1752677025886,0.0032,118610.0,118600.0,2.90614952]
[1752677026504,0.0032,118610.0,118600.0,3.98457452]
[1752677026717,0.0052,118610.0,118600.0,1.78992352]
[1752677026876,0.0052,118610.0,118600.0,3.87843352]
[1752677027234,0.0052,118610.0,118600.0,3.44576652]
[1752677027471,0.0052,118610.0,118600.0,3.44703152]
[1752677028117,0.0052,118610.0,118600.0,3.46157237]
[1752677028548,0.0052,118610.0,118600.0,4.26765937]
[1752677028776,0.0052,118610.0,118600.0,4.26749937]
[1752677029032,0.0052,118610.0,118600.0,4.29939937]
[1752677029275,0.0032,118610.0,118600.0,4.30816343]
[1752677029490,0.0032,118610.0,118600.0,1.84696843]
[1752677029717,0.0032,118610.0,118600.0,6.51661143]
[1752677030373,0.0032,118610.0,118600.0,6.54050578]
[1752677030587,0.0032,118610.0,118600.0,6.87086278]
[1752677030812,0.0032,118610.0,118600.0,5.35193078]
[1752677031025,0.0032,118610.0,118600.0,2.72812743]
[1752677031239,0.0032,118610.0,118600.0,2.22118496]
[1752677031658,0.0032,118610.0,118600.0,2.13980196]
[1752677032105,0.0032,118610.0,118600.0,2.64674443]
[1752677032524,0.0032,118610.0,118600.0,4.12288443]
[1752677032740,0.0032,118610.0,118600.0,4.13878443]
[1752677033613,0.0032,118610.0,118600.0,5.70992578]
[1752677033826,0.0032,118610.0,118600.0,2.94581294]
[1752677034034,0.0032,118610.0,118600.0,3.92194178]
[1752677034464,0.0032,118610.0,118600.0,3.81166943]
[1752677034674,0.0052,118610.0,118600.0,1.56666431]
[1752677034886,0.0052,118610.0,118600.0,1.20276996]
[1752677035094,0.0052,118610.0,118600.0,1.54276996]
[1752677035523,0.037,118610.0,118600.0,1.52822911]
[1752677035749,0.037,118610.0,118600.0,1.37738911]
[1752677035967,0.22542132,118610.0,118600.0,1.26265087]
[1752677036171,0.22542132,118610.0,118600.0,1.27108243]
[1752677036384,0.21699069,118610.0,118600.0,0.67862982]
[1752677036598,0.21699069,118610.0,118600.0,0.68706145]
[1752677036812,0.0652324,118610.0,118600.0,0.54469257]
[1752677037060,0.05680148,118610.0,118600.0,1.21082624]
[1752677037269,0.05680105,118610.0,118600.0,1.21082624]
[1752677037482,0.07366274,118610.0,118600.0,1.21082624]
[1752677037695,0.25071357,118610.0,118600.0,1.21082624]
[1752677038113,0.07366274,118610.0,118600.0,1.21082624]
[1752677038328,0.07366267,118610.0,118600.0,1.21082624]
[1752677039121,0.05680105,118610.0,118600.0,1.21082624]
[1752677039341,0.05680105,118610.0,118600.0,1.29633652]
[1752677039342,0.03994,118610.0,118600.0,1.29633652]
[1752677039829,0.03994,118610.0,118600.0,1.29840652]
[1752677039830,0.037,118610.0,118600.0,1.29840652]
[1752677040298,0.0032,118610.0,118600.0,1.30137652]
[1752677041470,0.0032,118610.0,118600.0,6.80831899]
[1752677041696,0.0032,118610.0,118600.0,6.85485984]
[1752677042586,0.0032,118610.0,118600.0,6.87671594]
[1752677042809,0.0032,118610.0,118600.0,6.85485984]
[1752677043251,0.0193,118630.0,118600.0,6.84299029]
[1752677043436,0.00335148,118630.0,118620.0,1.04083808]
[1752677043690,0.00335148,118630.0,118620.0,1.27885836]
[1752677044114,0.00335148,118630.0,118620.0,1.30572271]
[1752677044331,0.00535148,118630.0,118620.0,1.32460881]
[1752677044551,0.00535148,118630.0,118620.0,1.30071446]
[1752677044771,0.00335148,118630.0,118620.0,1.30071446]
[1752677044985,0.00335148,118630.0,118620.0,1.30368446]
[1752677045203,0.00335148,118630.0,118620.0,1.32757881]
[1752677045414,0.00335148,118630.0,118620.0,1.30368446]
[1752677045871,0.00335148,118630.0,118620.0,1.30572271]
[1752677046090,0.00335148,118630.0,118620.0,1.28182836]
[1752677046502,0.00335148,118630.0,118620.0,1.30368446]
[1752677046924,0.00335148,118630.0,118620.0,1.28182836]
[1752677047129,0.00335148,118630.0,118620.0,1.30368446]
[1752677047369,0.03063862,118630.0,118620.0,1.27885836]
[1752677047579,0.0746079,118630.0,118620.0,0.76984589]
[1752677047803,0.06617862,118630.0,118620.0,1.27678836]
[1752677048231,0.06617862,118630.0,118620.0,1.30155627]
[1752677048499,0.05774941,118630.0,118620.0,1.30155627]
[1752677048715,0.04089148,118630.0,118620.0,1.30362627]
[1752677048955,0.03795148,118630.0,118620.0,1.30362627]
[1752677049182,0.04638041,118630.0,118620.0,1.30362627]
[1752677049404,0.06323869,118630.0,118620.0,1.30362627]
[1752677049626,0.05380948,118630.0,118620.0,1.30362627]
[1752677049849,0.03695148,118630.0,118620.0,1.30362627]
[1752677050910,0.04538041,118630.0,118620.0,1.30362627]
[1752677051119,0.06223862,118630.0,118620.0,1.30362627]
[1752677051841,0.04538041,118630.0,118620.0,1.30362627]
[1752677052060,0.05380948,118630.0,118620.0,1.30362627]
[1752677052321,0.04538041,118630.0,118620.0,1.30362627]
[1752677052546,0.05380941,118630.0,118620.0,1.30362627]
[1752677052773,0.03695148,118630.0,118620.0,1.30362627]
[1752677053002,0.04538055,118630.0,118620.0,1.30362627]
[1752677053225,0.24220016,118630.0,118620.0,1.13425621]
[1752677053445,0.07360875,118630.0,118620.0,1.30107619]
[1752677053673,0.05674976,118630.0,118620.0,1.30950597]
[1752677054129,0.03695148,118630.0,118620.0,1.31157597]
[1752677054576,0.00235148,118630.0,118620.0,1.31454597]
[1752677054816,0.00235148,118630.0,118620.0,1.78481697]
[1752677062384,0.05299962,118630.0,118620.0,0.9560065]
[1752677062627,0.04457041,118630.0,118620.0,1.46294897]
[1752677062839,0.06462869,118630.0,118620.0,1.30902597]
[1752677063045,0.07305797,118630.0,118620.0,1.54396297]
[1752677063463,0.08148746,118630.0,118620.0,1.30059619]
[1752677063728,0.07305797,118630.0,118620.0,1.30902597]
[1752677063913,0.06462869,118630.0,118620.0,1.30902597]
[1752677064124,0.07305804,118630.0,118620.0,1.30902597]
[1752677064326,0.06462869,118630.0,118620.0,1.30902597]
[1752677064863,0.05619948,118630.0,118620.0,1.31118597]
[1752677065057,0.06462869,118630.0,118620.0,1.31118597]
[1752677065267,0.05619948,118630.0,118620.0,1.31118597]
[1752677065488,0.00434148,118630.0,118620.0,1.31429597]
[1752677065690,0.00235148,118630.0,118620.0,1.31429597]
[1752677066462,0.01078041,118630.0,118620.0,1.31429597]
[1752677066675,0.01920948,118630.0,118620.0,1.31429597]
[1752677067097,0.02119948,118630.0,118620.0,1.31118597]
[1752677067309,0.01277041,118630.0,118620.0,1.31118597]
[1752677067529,0.01277055,118630.0,118620.0,1.31429597]
[1752677067744,0.04562918,118630.0,118620.0,1.31118597]
[1752677067959,0.06162911,118630.0,118620.0,1.31118597]
[1752677068184,0.04477055,118630.0,118620.0,1.31118597]
[1752677068599,0.02877055,118630.0,118620.0,1.31118597]
[1752677068834,0.02034148,118630.0,118620.0,1.31118597]
[1752677069050,0.02877048,118630.0,118620.0,1.31118597]
[1752677069262,0.06162883,118630.0,118620.0,0.8042435]
[1752677069477,0.06162876,118630.0,118620.0,1.31118597]
[1752677070113,0.07005804,118630.0,118620.0,1.31118597]
[1752677070351,0.05319955,118630.0,118620.0,1.31118597]
[1752677070562,0.04477048,118630.0,118620.0,1.31118597]
[1752677070977,0.07005804,118630.0,118620.0,1.31118597]
[1752677071181,0.05319969,118630.0,118620.0,1.31118597]
[1752677071449,0.05319955,118630.0,118620.0,1.31118597]
[1752677071658,0.03634148,118630.0,118620.0,1.31118597]
[1752677071870,0.02034148,118630.0,118620.0,1.31118597]
[1752677072051,0.00235148,118630.0,118620.0,1.31429597]
[1752677072750,0.00235148,118630.0,118620.0,2.69882197]
[1752677072967,0.00235148,118630.0,118620.0,2.70707282]
[1752677073412,0.00235148,118630.0,118620.0,2.52689282]
[1752677073638,0.00235148,118630.0,118620.0,2.03499597]
[1752677074087,0.00235148,118630.0,118620.0,1.88599597]
[1752677074301,0.03619955,118630.0,118620.0,1.44886197]
[1752677074516,0.04297041,118630.0,118620.0,1.29774197]
[1752677074730,0.06302862,118630.0,118620.0,1.32259391]
[1752677074945,0.05459941,118630.0,118620.0,1.32259391]
[1752677075149,0.06302855,118630.0,118620.0,1.32259391]
[1752677075379,0.06302848,118630.0,118620.0,1.32259391]
[1752677075592,0.06302848,118630.0,118620.0,1.32475391]
[1752677075799,0.07988704,118630.0,118620.0,1.32259391]
[1752677076015,0.07988711,118630.0,118620.0,0.81565144]
[1752677076222,0.24847965,118630.0,118620.0,1.20609613]
[1752677076423,0.24847965,118630.0,118620.0,1.21452598]
[1752677076640,0.24847965,118630.0,118620.0,1.40305498]
[1752677076854,0.24005058,118630.0,118620.0,1.20609613]
[1752677077070,0.24005058,118630.0,118620.0,1.02063038]
[1752677077286,0.22319195,118630.0,118620.0,0.69060375]
[1752677077501,0.22319195,118630.0,118620.0,0.70746394]
[1752677077712,0.22319195,118630.0,118620.0,1.2228364]
[1752677078365,0.22319195,118630.0,118620.0,1.21440641]
[1752677078806,0.21476246,118630.0,118620.0,0.69903388]
[1752677079072,0.21476246,118630.0,118620.0,1.02051038]
[1752677079287,0.20633289,118630.0,118620.0,0.51348791]
[1752677080761,0.20633289,118630.0,118620.0,0.36476791]
[1752677080967,0.20633289,118630.0,118620.0,0.17348791]
[1752677081182,0.20633289,118630.0,118620.0,0.51348791]
[1752677083108,0.20633289,118630.0,118620.0,0.51336791]
[1752677083532,0.20633289,118630.0,118620.0,0.36476791]
[1752677083745,0.20633289,118630.0,118620.0,0.51328791]
[1752677087433,0.20633289,118630.0,118620.0,0.48852]
[1752677088060,0.20633289,118630.0,118620.0,0.34]
[1752677088273,0.22319195,118630.0,118620.0,1.17453823]
[1752677088481,0.05982932,118630.0,118620.0,1.191398]
[1752677088691,0.04462925,118630.0,118620.0,1.19982778]
[1752677088907,0.00235148,118630.0,118620.0,1.28844806]
[1752677089115,0.00235148,118630.0,118620.0,1.84691975]
[1752677090418,0.00235148,118630.0,118620.0,1.87168382]
[1752677090662,0.00235148,118630.0,118620.0,1.35467674]
[1752677091080,0.00235148,118630.0,118620.0,1.34262775]
[1752677094077,0.00235148,118630.0,118620.0,2.97326775]
[1752677094302,0.00235148,118630.0,118620.0,2.9878086]
[1752677094783,0.00235148,118630.0,118620.0,6.3571686]
[1752677095213,0.00235148,118630.0,118620.0,6.5594486]
[1752677095638,0.0032,118650.0,118620.0,6.5594486]
[1752677095639,0.0032,118650.0,118640.0,0.56536291]
[1752677095875,0.00370482,118650.0,118640.0,3.20830728]
[1752677096093,0.00370482,118650.0,118640.0,3.20826728]
[1752677096292,0.00370482,118650.0,118640.0,3.21138728]
[1752677097628,0.00370482,118650.0,118640.0,5.92033622]
[1752677097770,0.00370482,118650.0,118640.0,5.92133622]
[1752677098182,0.00370482,118650.0,118640.0,5.94219232]
[1752677098592,0.00370482,118650.0,118640.0,6.50968132]
[1752677098764,0.00370482,118650.0,118640.0,6.20816332]
[1752677098964,0.00370482,118650.0,118640.0,6.33630722]
[1752677099377,0.00370482,118650.0,118640.0,1.98047022]
[1752677099581,0.00370482,118650.0,118640.0,6.98047022]
[1752677099803,0.00370482,118650.0,118640.0,7.02622067]
[1752677100057,0.00370482,118650.0,118640.0,4.00658822]
[1752677100301,0.00370482,118650.0,118640.0,3.64943013]
[1752677100506,0.00370482,118650.0,118640.0,4.27682413]
[1752677100707,0.00370482,118650.0,118640.0,3.31558713]
[1752677101371,0.00370482,118650.0,118640.0,3.82054522]
[1752677101587,0.00370482,118650.0,118640.0,4.42941328]
[1752677101806,0.00370482,118650.0,118640.0,2.04171828]
[1752677102026,0.00370482,118650.0,118640.0,1.90979828]
[1752677102241,0.01213233,118650.0,118640.0,1.63421128]
[1752677102459,0.00370482,118650.0,118640.0,1.63421128]
[1752677102673,0.01213233,118650.0,118640.0,1.73867228]
[1752677102896,0.1806954,118650.0,118640.0,1.05185083]
[1752677103116,0.02898819,118650.0,118640.0,0.94491483]
[1752677103358,0.03948612,118650.0,118640.0,1.45518128]
[1752677103591,0.00577482,118650.0,118640.0,0.95022319]
[1752677103799,0.00370482,118650.0,118640.0,1.45830128]
[1752677104230,0.02177482,118650.0,118640.0,1.12633128]
[1752677104458,0.02056019,118650.0,118640.0,1.64720428]
[1752677104697,0.03105819,118650.0,118640.0,1.40343428]
[1752677104936,0.24281934,118650.0,118640.0,0.74360748]
[1752677105128,0.24281934,118650.0,118640.0,0.61294483]
[1752677105381,0.24281934,118650.0,118640.0,0.7688934]
[1752677105596,0.22596397,118650.0,118640.0,0.74356748]
[1752677105838,0.21753597,118650.0,118640.0,0.57499028]
[1752677106772,0.21753597,118650.0,118640.0,0.75199634]
[1752677107023,0.20910782,118650.0,118640.0,0.57499028]
[1752677107248,0.04897289,118650.0,118640.0,0.75199619]
[1752677107466,0.22596375,118650.0,118640.0,0.76042476]
[1752677107678,0.22596375,118650.0,118640.0,0.76885326]
[1752677107679,0.2343919,118650.0,118640.0,0.76885326]
[1752677107879,0.05740075,118650.0,118640.0,0.77728162]
[1752677108529,0.06582833,118650.0,118640.0,0.77728162]
[1752677108738,0.05740033,118650.0,118640.0,0.77728162]
[1752677108955,0.06582833,118650.0,118640.0,0.77728162]
[1752677109171,0.2428194,118650.0,118640.0,0.77728162]
[1752677109381,0.23439175,118650.0,118640.0,0.75199619]
[1752677109600,0.23439175,118650.0,118640.0,0.76042483]
[1752677109877,0.23439175,118650.0,118640.0,0.76885333]
[1752677110306,0.23439175,118650.0,118640.0,0.77728176]
[1752677110522,0.23439175,118650.0,118640.0,0.76042483]
[1752677110952,0.23439175,118650.0,118640.0,0.77728176]
[1752677111191,0.2428199,118650.0,118640.0,0.7688534]
[1752677111416,0.06582875,118650.0,118640.0,0.78571026]
[1752677111815,0.05740068,118650.0,118640.0,0.78571026]
[1752677112050,0.04054482,118650.0,118640.0,1.29272835]
[1752677112310,0.05433005,118650.0,118640.0,1.29272835]
[1752677112553,0.00370482,118650.0,118640.0,2.44178645]
[1752677113439,0.03105791,118650.0,118640.0,2.12551735]
[1752677113667,0.02263005,118650.0,118640.0,2.12551735]
[1752677113886,0.02263005,118650.0,118640.0,2.00367035]
[1752677114098,0.01420233,118650.0,118640.0,2.00367035]
[1752677114309,0.00577482,118650.0,118640.0,2.00367035]
[1752677114517,0.00577482,118650.0,118640.0,2.00679035]
[1752677114738,0.00370482,118650.0,118640.0,2.00679035]
[1752677115172,0.00370482,118650.0,118640.0,2.01881454]
[1752677116139,0.00370482,118650.0,118640.0,2.55765292]
[1752677116371,0.00370482,118650.0,118640.0,2.55129682]
[1752677116589,0.00370482,118650.0,118640.0,7.4109723]
[1752677116824,0.17747025,118670.0,118660.0,0.53383024]
[1752677117037,0.1776216,118670.0,118660.0,3.19563291]
[1752677117246,0.00035135,118670.0,118660.0,3.19563291]
[1752677117507,0.00035135,118670.0,118660.0,3.21183291]
[1752677117716,0.00035135,118670.0,118660.0,3.06483291]
[1752677117933,0.00035135,118670.0,118660.0,3.20041391]
[1752677118144,0.00035135,118670.0,118660.0,3.1927768]
[1752677119001,0.00035135,118670.0,118660.0,3.03341976]
[1752677119201,0.00035135,118670.0,118660.0,3.18033976]
[1752677119416,0.00035135,118670.0,118660.0,3.18233976]
[1752677120276,0.00035135,118670.0,118660.0,1.25474952]
[1752677120498,0.03342135,118670.0,118660.0,1.79497076]
[1752677120724,0.05341388,118670.0,118660.0,0.76818052]
[1752677120952,0.04498751,118670.0,118660.0,1.07582452]
[1752677121187,0.03656135,118670.0,118660.0,1.07582452]
[1752677121424,0.03656135,118670.0,118660.0,1.57840976]
[1752677121876,0.04498744,118670.0,118660.0,1.57940976]
[1752677122107,0.04498758,118670.0,118660.0,1.57940976]
[1752677122603,0.04498751,118670.0,118660.0,1.57940976]
[1752677122830,0.03656135,118670.0,118660.0,1.46439276]
[1752677123056,0.00242135,118670.0,118660.0,1.46627276]
[1752677123278,0.00035135,118670.0,118660.0,1.46923276]
[1752677124414,0.00877744,118670.0,118660.0,1.46923276]
[1752677124625,0.23624114,118670.0,118660.0,0.75863358]
[1752677124841,0.23938114,118670.0,118660.0,0.75855358]
[1752677125105,0.23095505,118670.0,118660.0,0.75855358]
[1752677125311,0.23095505,118670.0,118660.0,0.76698066]
[1752677125516,0.23095505,118670.0,118660.0,1.11649882]
[1752677125731,0.23095505,118670.0,118660.0,1.26313882]
[1752677125935,0.23087292,118670.0,118660.0,1.27156604]
[1752677126136,0.05391175,118670.0,118660.0,1.28841999]
[1752677126360,0.05391175,118670.0,118660.0,1.29037999]
[1752677126361,0.01751922,118670.0,118660.0,1.29037999]
[1752677126580,0.00231922,118670.0,118660.0,1.29333999]
[1752677126800,0.00026922,118670.0,118660.0,1.29333999]
[1752677127871,0.00026922,118670.0,118660.0,1.14669999]
[1752677127872,0.00869531,118670.0,118660.0,1.14669999]
[1752677128300,0.02439531,118670.0,118660.0,1.29321999]
[1752677128732,0.00026922,118670.0,118660.0,1.29321999]
[1752677129604,0.00231922,118670.0,118660.0,1.14373999]
[1752677129809,0.05859805,118670.0,118660.0,1.29025999]
[1752677130254,0.05017161,118670.0,118660.0,1.29017999]
[1752677130504,0.01821922,118670.0,118660.0,1.29017999]
[1752677130758,0.01616922,118670.0,118660.0,1.29313999]
[1752677130985,0.00026922,118670.0,118660.0,1.29313999]
[1752677131942,0.00026922,118670.0,118660.0,2.95267099]
[1752677132447,0.00026922,118670.0,118660.0,2.90892699]
[1752677132674,0.00026922,118670.0,118660.0,2.65751999]
[1752677132906,0.00026922,118670.0,118660.0,2.28845699]
[1752677134732,0.00026922,118670.0,118660.0,5.86717995]
[1752677135163,0.00326,118690.0,118680.0,1.03838282]
[1752677135379,0.00326,118690.0,118680.0,3.9967611]
[1752677135801,0.00326,118690.0,118680.0,3.9997211]
[1752677136084,0.00326,118690.0,118680.0,4.02500681]
[1752677136521,0.00326,118690.0,118680.0,3.94265381]
[1752677136732,0.00326,118690.0,118680.0,3.94465381]
[1752677137188,0.00326,118690.0,118680.0,3.73235481]
[1752677137402,0.00326,118690.0,118680.0,2.27313681]
[1752677137615,0.00326,118690.0,118680.0,2.12689681]
[1752677137833,0.00326,118690.0,118680.0,2.27305681]
[1752677138506,0.00326,118690.0,118680.0,3.81767681]
[1752677138718,0.00326,118690.0,118680.0,3.92682981]
[1752677138928,0.00326,118690.0,118680.0,1.32104177]
[1752677139165,0.00326,118690.0,118680.0,1.33644177]
[1752677139414,0.00326,118690.0,118680.0,4.21831777]
[1752677139631,0.00326,118690.0,118680.0,5.19144877]
[1752677140346,0.00326,118690.0,118680.0,5.69603401]
[1752677140558,0.00326,118690.0,118680.0,6.53864177]
[1752677141720,0.00326,118690.0,118680.0,6.01927777]
[1752677141936,0.00303673,118690.0,118680.0,6.14471277]
[1752677142174,0.00303673,118690.0,118680.0,6.53864177]
[1752677142413,0.0002,118700.0,118690.0,1.57385173]
[1752677142635,0.0032,118710.0,118700.0,0.56466492]
[1752677142864,0.00335133,118710.0,118700.0,6.01799168]
[1752677143318,0.00335133,118710.0,118700.0,5.72382568]
[1752677143750,0.00335133,118710.0,118700.0,6.24516268]
[1752677144419,0.00335133,118710.0,118700.0,6.25970353]
[1752677144643,0.0032,118730.0,118720.0,0.69831752]
[1752677144855,0.0032,118730.0,118720.0,1.2696678]
[1752677145281,0.0032,118730.0,118720.0,2.6423118]
[1752677146606,0.0042,118730.0,118720.0,2.6423118]
[1752677147066,0.0032,118730.0,118720.0,2.6423118]
[1752677149498,0.02004387,118730.0,118720.0,2.6423118]
[1752677149719,0.05986598,118730.0,118720.0,1.5244628]
[1752677149938,0.05986598,118730.0,118720.0,1.5242228]
[1752677150155,0.0682883,118730.0,118720.0,1.5242228]
[1752677150376,0.23673772,118730.0,118720.0,1.47869494]
[1752677150622,0.21989385,118730.0,118720.0,0.80324089]
[1752677150839,0.21147174,118730.0,118720.0,1.24415913]
[1752677151061,0.21147174,118730.0,118720.0,0.57107028]
[1752677151287,0.21147174,118730.0,118720.0,1.07565552]
[1752677151500,0.0430219,118730.0,118720.0,1.3748928]
[1752677151714,0.0346,118730.0,118720.0,1.3748928]
[1752677151950,0.05986647,118730.0,118720.0,1.3748928]
[1752677152379,0.0346,118730.0,118720.0,1.3748928]
[1752677152592,0.04302197,118730.0,118720.0,1.3748928]
[1752677152806,0.05144408,118730.0,118720.0,1.3748928]
[1752677153021,0.05986633,118730.0,118720.0,0.87030756]
[1752677153234,0.06828865,118730.0,118720.0,1.2693878]
[1752677153648,0.06828865,118730.0,118720.0,0.76480256]
[1752677153861,0.06828865,118730.0,118720.0,1.2693878]
[1752677154440,0.05986633,118730.0,118720.0,1.2943813]
[1752677154651,0.06828865,118730.0,118720.0,1.2943813]
[1752677154855,0.21989414,118730.0,118720.0,0.5103935]
[1752677155732,0.21989414,118730.0,118720.0,1.01497874]
[1752677155941,0.21989414,118730.0,118720.0,1.19186545]
[1752677156149,0.21989414,118730.0,118720.0,1.20024841]
[1752677156362,0.21989414,118730.0,118720.0,0.69566317]
[1752677156574,0.21347182,118730.0,118720.0,1.19182545]
[1752677156798,0.20304942,118730.0,118720.0,0.5103535]
[1752677157024,0.20304942,118730.0,118720.0,1.01493874]
[1752677157239,0.20404942,118730.0,118720.0,0.86957874]
[1752677157454,0.20404942,118730.0,118720.0,1.02336192]
[1752677157878,0.20404942,118730.0,118720.0,1.01493874]
[1752677158335,0.20404942,118730.0,118720.0,1.19182553]
[1752677158570,0.20404942,118730.0,118720.0,1.20024863]
[1752677159114,0.20404942,118730.0,118720.0,1.20867166]
[1752677159316,0.20404942,118730.0,118720.0,1.20024863]
[1752677159526,0.20404942,118730.0,118720.0,1.20867166]
[1752677160139,0.20404942,118730.0,118720.0,1.02336192]
[1752677160382,0.20404942,118730.0,118720.0,1.19182553]
[1752677161460,0.22089429,118730.0,118720.0,1.02356963]
[1752677161664,0.22089429,118730.0,118720.0,0.37362439]
[1752677161867,0.22738302,118730.0,118720.0,1.02332963]
[1752677162102,0.22738302,118730.0,118720.0,0.51874439]
[1752677162842,0.22738302,118730.0,118720.0,0.37362439]
[1752677163059,0.22738302,118730.0,118720.0,0.51874439]
[1752677163280,0.22738727,118730.0,118720.0,0.51874439]
[1752677165836,0.22738727,118730.0,118720.0,0.17874439]
[1752677166064,0.1684778,118710.0,118690.0,0.50458524]
[1752677166283,0.20822497,118700.0,118690.0,1.10717834]
[1752677166488,0.19282497,118700.0,118690.0,0.91213834]
[1752677166697,0.20124935,118700.0,118690.0,0.41597826]
[1752677166893,0.20124935,118700.0,118690.0,0.7756035]
[1752677167116,0.21664935,118700.0,118690.0,1.26898859]
[1752677167318,0.21664935,118700.0,118690.0,1.30250946]
[1752677167678,0.20822497,118700.0,118690.0,1.11715302]
[1752677167894,0.20822497,118700.0,118690.0,0.3736722]
[1752677168124,0.20822497,118700.0,118690.0,0.5185922]
[1752677168360,0.2167189,118700.0,118690.0,0.1785922]
[1752677169304,0.21022497,118700.0,118690.0,0.5185922]
[1752677170223,0.21022497,118700.0,118690.0,1.02317744]
[1752677170416,0.19482497,118700.0,118690.0,1.20010886]
[1752677170636,0.19482497,118700.0,118690.0,1.20010893]
[1752677171096,0.19482497,118700.0,118690.0,1.02317744]
[1752677171316,0.21092497,118700.0,118690.0,1.02317744]
[1752677171928,0.21092497,118700.0,118690.0,0.5185922]
[1752677172141,0.21092497,118700.0,118690.0,1.02317744]
[1752677174291,0.21092497,118700.0,118690.0,0.5185922]
[1752677174507,0.21092497,118700.0,118690.0,0.3736722]
[1752677174732,0.21092497,118700.0,118690.0,0.5184322]
[1752677175174,0.21092497,118700.0,118690.0,0.0336722]
[1752677175391,0.44111525,118700.0,118690.0,0.00015133]
[1752677175606,0.46641125,118700.0,118690.0,0.00015133]
[1752677176487,0.46441125,118700.0,118690.0,0.00015133]
[1752677176912,0.46841125,118700.0,118690.0,0.00015133]
[1752677177343,0.4829521,118700.0,118690.0,0.00015133]
[1752677178685,0.98753734,118700.0,118690.0,1e-08]
[1752677179121,0.99401081,118700.0,118690.0,1e-08]
[1752677179771,0.34474557,118700.0,118690.0,1e-08]
[1752677180001,0.3382721,118700.0,118690.0,1e-08]
[1752677180223,0.32373125,118700.0,118690.0,1e-08]
[1752677180445,0.20622097,118700.0,118690.0,0.67309144]
[1752677180661,0.02084841,118700.0,118690.0,1.0467918]
[1752677180877,0.004,118700.0,118690.0,1.30982208]
[1752677181325,0.02084813,118700.0,118690.0,0.81027684]
[1752677181540,0.02084806,118700.0,118690.0,1.31486208]
[1752677181965,0.02927237,118700.0,118690.0,1.31486208]
[1752677182633,0.02084806,118700.0,118690.0,1.31486208]
[1752677182853,0.03769682,118700.0,118690.0,1.31486208]
[1752677183109,0.03369682,118700.0,118690.0,1.31486208]
[1752677183322,0.19376485,118700.0,118690.0,1.27308695]
[1752677183534,0.19376485,118700.0,118690.0,1.26501211]
[1752677183748,0.19376485,118700.0,118690.0,1.2734372]
[1752677183962,0.18534075,118700.0,118690.0,1.26501211]
[1752677184380,0.18534075,118700.0,118690.0,1.27343713]
[1752677184806,0.17691644,118700.0,118690.0,1.07965553]
[1752677185222,0.17900644,118700.0,118690.0,0.48642001]
[1752677185891,0.17900644,118700.0,118690.0,0.48436001]
[1752677186092,0.21371644,118700.0,118690.0,0.48436001]
[1752677187000,0.21371644,118700.0,118690.0,0.48536001]
[1752677187415,0.21371644,118700.0,118690.0,0.48436001]
[1752677187640,0.21571644,118700.0,118690.0,0.48436001]
[1752677188484,0.21260644,118700.0,118690.0,0.48642001]
[1752677188703,0.17891644,118700.0,118690.0,0.99398525]
[1752677188917,0.17891644,118700.0,118690.0,1.16249144]
[1752677189141,0.17891644,118700.0,118690.0,1.18776713]
[1752677190225,0.17891644,118700.0,118690.0,1.19619222]
[1752677190436,0.17891644,118700.0,118690.0,1.17934197]
[1752677190645,0.17891644,118700.0,118690.0,1.18776713]
[1752677191064,0.17891644,118700.0,118690.0,1.19619215]
[1752677191272,0.17049199,118700.0,118690.0,0.99398525]
[1752677191923,0.17049199,118700.0,118690.0,1.16249144]
[1752677192108,0.17049199,118700.0,118690.0,0.67475659]
[1752677192358,0.17049199,118700.0,118690.0,1.17934183]
[1752677192590,0.17049199,118700.0,118690.0,0.99398525]
[1752677192810,0.17049199,118700.0,118690.0,1.16249144]
[1752677193030,0.1873411,118700.0,118690.0,1.19594155]
[1752677193247,0.19576541,118700.0,118690.0,1.19594155]
[1752677193458,0.19576541,118700.0,118690.0,1.17934169]
[1752677193683,0.01884883,118700.0,118690.0,1.19619152]
[1752677193920,0.02727279,118700.0,118690.0,1.2970018]
[1752677194354,0.02727279,118700.0,118690.0,1.26485197]
[1752677194355,0.20418937,118700.0,118690.0,1.26485197]
[1752677194561,0.19576527,118700.0,118690.0,1.26485197]
[1752677194904,0.01884869,118700.0,118690.0,1.28170173]
[1752677195328,0.02727258,118700.0,118690.0,1.29700173]
[1752677195534,0.002,118700.0,118690.0,1.29700173]
[1752677195743,0.01884827,118700.0,118690.0,1.29700173]
[1752677196177,0.01042403,118700.0,118690.0,1.29700173]
[1752677196386,0.0188482,118700.0,118690.0,1.29700173]
[1752677196821,0.20418916,118700.0,118690.0,1.28857692]
[1752677197033,0.03569717,118700.0,118690.0,1.2970018]
[1752677197246,0.0188482,118700.0,118690.0,1.30542661]
[1752677197679,0.0188482,118700.0,118690.0,0.80084137]
[1752677197918,0.02727251,118700.0,118690.0,1.30542661]
[1752677198129,0.0188482,118700.0,118690.0,1.30542661]
[1752677198315,0.02727244,118700.0,118690.0,1.30542661]
[1752677198788,0.0188482,118700.0,118690.0,1.30542661]
[1752677199028,0.01884813,118700.0,118690.0,1.30542661]
[1752677199242,0.002,118700.0,118690.0,1.34586372]
[1752677199457,0.002,118700.0,118690.0,1.32172661]
[1752677200152,0.002,118700.0,118690.0,5.01963985]
[1752677200399,0.002,118700.0,118690.0,6.59098085]
[1752677200637,0.01684585,118720.0,118710.0,0.53373607]
[1752677200890,0.02526811,118720.0,118710.0,1.27294159]
[1752677201122,0.00842261,118720.0,118710.0,1.27294159]
[1752677201342,0.02004458,118730.0,118720.0,0.54215518]
[1752677201612,0.190604,118730.0,118720.0,1.02989499]
[1752677201820,0.02215458,118730.0,118720.0,1.04878056]
[1752677202459,0.19902647,118730.0,118720.0,1.04035788]
[1752677202678,0.0032,118730.0,118720.0,1.0520107]